{"text_format":"3","workbook":"xlsx","n_sheets":21,"sheets":["Hinweise","Ausgaben_ Finanzierung_ges","Ausgaben","2.1 (1)","2.1 (2)","2.2 (1)","2.2 (2)","2.4","2.5 (1)","2.5 (2)","2.5 (3)","2.6","3.1","3.2","3.7","3.8","4.1","BM I","BM II","EPM","Fest - Projekt"],"not_rendered":{"defined_names":20,"comments":5},"read":"whole","date_system":"1900"}

{"sheet":"Hinweise","index":0,"n_rows":18,"n_cols":7,"rows_kept":18,"merged":[[0,0,0,2],[0,3,0,5],[0,6,0,7],[2,0,2,7],[3,0,3,7],[6,0,6,7],[7,0,7,7],[8,0,8,7],[9,0,9,7],[10,0,10,7],[11,0,11,7],[12,0,12,7],[13,0,13,7],[14,0,14,7],[15,0,15,7],[16,0,16,7],[17,0,17,7]]}
["Landeshauptstadt Dresden - Jugendamt",null,null,"Förderung von Trägern der freien Jugendhilfe",null,null,{"$f":"'Ausgaben_ Finanzierung_ges'!G1:K1","v":"Verwendungsnachweis 2024"}]
[]
["Hinweise zum Verwendungsnachweis"]
["Es handelt sich um Hinweise des Jugendamts \n(weitere ausführliche Hinweise finden Sie im Schreiben des Stadtjugendpfarramts an die Dresdner Kirchgemeinden): \n\nDer Verwendungsnachweis besteht aus dem zahlenmäßigen Nachweis (Ausgaben) und dem Sachbericht (QM-Auswertung).\nFür den zahlenmäßigen Nachweis muss ein Buchungsauszug der Kassenverwaltung ausgedruckt und jeder Fördermittelabrechnung als \"Belegaufstellung\" beigefügt werden.\nDie Belegaufstellung dient dem zeitnahen Erfassen der Belege und ist Grundlage für diesen Verwendungsnachweis."]
["Zahlenmäßiger Nachweis:"]
["Es können nur Ausgaben als zuwendungsfähig anerkannt werden, "]
[" - die im Antrag aufgeführt wurden, dem geförderten Projekt zuordenbar sind und der Erfüllung des Zuwendungszwecks dienen;"]
[" - die belegbar sind (zu jeder Abrechnung ist ein KFM-Web Buchungsauszug der Kassenverwaltung mit einzureichen);"]
[" - deren Rechnungsdatum in den Bewilligungszeitraum fällt. Im Rahmen der \"2-Monatsfrist\" gemäß Nr. 1.4 ANBest-P werden Belege bei Zahlung bis zum 28.02. des Folgejahres anerkannt, sofern sie den Bewilligungszeitraum betreffen. "]
["Der Ausgaben- und Finanzierungsnachweis muss alle mit dem Zuwendungszweck zusammenhängenden Einnahmen und Ausgaben enthalten. Auf Grund der Finanzierungsart (Festbetrag) ist es jedoch förderunschädlich, wenn die Belegaufstellung nicht alle Ausgaben umfasst, jedoch mindestens in Höhe der Zuwendung. Es wird jedoch empfohlen, mehr Ausgabenbelege zu erfassen (sofern sie vorhanden sind),  damit ggf. nicht zuwendungsfähige Ausgaben aus anderen Mitteln gedeckt werden können und es so nicht zu einer Rückforderung von Fördermitteln kommt. "]
["Die Belege sind nicht mit dem Verwendungsnachweis einzureichen. Diese werden  von der Behörde nur abgefordert, wenn eine Belegprüfung für das Angebot vorgesehen ist. Der Zuwendungsempfänger hat die Belege und Verträge sowie alle sonstigen mit der Förderung zusammenhängenden Unterlagen fünf Jahre nach Vorlage des Verwendungsnachweises aufzubewahren, sofern nicht nach steuerrechtlichen oder anderen Vorschriften oder aufgrund der Zweckbindungsfrist eine längere Aufbewahrungsfrist bestimmt ist."]
["Hinweise für Ausfüller auf elektronische Weise:"]
["Zahlen sind fortlaufend und ohne Freizeichen, Punkte oder Währung einzugeben."]
["Farblich hervorgehobene Felder weisen darauf hin, dass sie auszufüllen sind. Viele Zellen enthalten eine Berechnungsformel oder Zellverknüpfung. Sie sind geschützt und nicht fett umrandet. Erst nachdem Sie den Verwendungsnachweis vollständig ausgefüllt haben, erscheinen alle Ergebnisse. Felder mit Fehlermeldungen sind für Sie erst relevant, wenn alles ausgefüllt wurde."]
["Felder mit roten Ecken (oben rechts) enthalten einen Kommentar mit Hinweisen."]
["Es sind keine Tabellenblätter zu löschen, auch wenn sie nicht genutzt werden. Diese müssen jedoch nicht ausgedruckt werden. "]
["Weitere Hinweise zum Ausfüllen der Formblätter befinden sich auf den einzelnen Tabellenblättern (rechts). "]
["Auf Grund verschiedener Formateinstellungen bei den PC's kann es vorkommen, dass die Einrichtung der Seite nicht mehr optimal ist (statt einem Blatt, werden 2 Blätter ausgedruckt). Bitte richten Sie in diesem Fall diese selbst ein (Ansicht -> Seitenumbruchvorschau -> mit der linken Maus-Taste die blauen Balken verschieben -> zurück zu Ansicht -> normal)."]

{"sheet":"Ausgaben_ Finanzierung_ges","index":1,"n_rows":41,"n_cols":18,"rows_kept":41,"merged":[[0,0,0,5],[0,6,0,10],[0,13,0,15],[1,17,6,20],[2,0,2,12],[2,13,2,14],[4,0,4,4],[4,5,4,15],[5,0,5,4],[5,5,5,15],[6,0,7,3],[6,4,6,7],[6,8,6,11],[6,12,6,15],[7,4,7,7],[7,8,7,11],[7,12,7,15],[7,17,7,20],[9,0,9,3],[9,4,9,7],[9,8,9,11],[9,12,9,15],[10,0,11,0],[10,1,10,3],[10,4,10,7],[10,8,10,11],[10,12,10,15],[11,1,11,3],[11,4,11,7],[11,8,11,11],[11,12,11,15],[12,0,12,3],[12,4,12,7],[12,8,12,11],[12,12,12,15],[13,0,13,3],[13,4,13,7],[13,8,13,11],[13,12,13,15],[14,0,14,3],[14,4,14,7],[14,8,14,11],[14,12,14,15],[15,0,15,3],[15,4,15,7],[15,8,15,11],[15,12,15,15],[16,17,16,20],[17,0,17,3],[17,4,17,7],[17,8,17,11],[17,12,17,15],[18,0,18,3],[18,4,18,7],[18,8,18,11],[18,12,18,15],[20,0,21,3],[20,4,20,7],[20,8,20,11],[20,12,20,15],[21,4,21,7],[21,8,21,11],[21,12,21,15],[21,17,21,20],[24,0,24,11],[24,12,24,15],[25,0,25,11],[25,12,25,15],[26,0,26,11],[26,12,26,15],[27,0,27,11],[27,12,27,15],[28,0,28,11],[28,12,28,15],[29,0,29,11],[29,12,29,15],[32,0,34,15],[32,17,34,18],[38,0,39,2],[39,9,39,15],[40,3,40,8],[40,9,40,15]]}
["Landeshauptstadt Dresden - Jugendamt",{"$nulls":5},"Verwendungsnachweis 2024",{"$nulls":5},"AZ:","117.00.03.SP24"]
[{"$nulls":17},"Farblich hervorgehobene Felder weisen darauf hin, dass sie auszufüllen sind!\nViele Zellen enthalten eine Berechnungsformel oder Zellenverknüpfung. Sie sind geschützt und nicht fett umrandet. Erst nachdem Sie das Formular vollständig ausgefüllt haben, erscheinen alle Ergebnisse. Blätter, die nicht benutzt werden, nicht löschen! Sie müssen jedoch nicht ausgedruckt werden."]
["Ausgaben- und Finanzierungsnachweis",{"$nulls":12},2024]
[]
["Name der durchführenden Kirchgemeinde:"]
["Veranstaltung (Bezeichnung und Datum):",{"$nulls":4},"Gruppenarbeit 01.01. - 31.12.2024"]
["Ausgaben",{"$nulls":3},"Personalausgaben",{"$nulls":3},"Sachausgaben",{"$nulls":3},"Gesamtausgaben"]
[{"$nulls":4},"XXXXXXXXXXXXX",{"$nulls":3},{"$f":"Ausgaben!N39","v":0},{"$nulls":3},{"$f":"SUM(E8:L8)","v":0},{"$nulls":4}," <-- Wertübernahme aus den vorhergehenden Blättern "]
[]
["Finanzierung",{"$nulls":3},"Personalausgaben",{"$nulls":3},"Sachausgaben",{"$nulls":3},"gesamt"]
["Jugendamt Dresden","Projektförderung",null,null,"XXXXXXXXXXXXX",{"$nulls":3},{"v":0,"d":"0.00   "},{"$nulls":3},{"$f":"SUM(E11:L11)","v":0}]
[null,"personenbezogene Förderung bei Bedürftigkeit des/der Einzelnen (BM, EPM)",{"$nulls":6},{"v":0,"d":"0.00   "},{"$nulls":3},{"$f":"I12","v":0}]
["weitere öffentliche Mittel",{"$nulls":3},"XXXXXXXXXXXXX",{"$nulls":3},{"v":0,"d":"0.00   "},{"$nulls":3},{"$f":"SUM(E13:L13)","v":0}]
["sonstige Finanzierungsquellen",{"$nulls":3},"XXXXXXXXXXXXX",{"$nulls":3},{"v":0,"d":"0.00   "},{"$nulls":3},{"$f":"SUM(E14:L14)","v":0}]
["Eigenmittel (z. B. Spenden, Teilnahmebeiträge, Einnahmen aus Vermietung)",{"$nulls":3},"XXXXXXXXXXXXX",{"$nulls":3},{"$f":"I8-I11-I12-I13-I14","v":{"v":0,"d":"0.00   "}},{"$nulls":3},{"$f":"SUM(E15:L15)","v":0}]
["gesamt",{"$nulls":3},{"$f":"SUM(E11:G15)","v":0},{"$nulls":3},{"$f":"SUM(I11:K15)","v":0},{"$nulls":3},{"$f":"SUM(E16:L16)","v":0},{"$nulls":4},{"$f":"IF(M16<>M8,\"Fehler: Ausgaben ungleich Finanzierung!\",\"\")","v":""}]
[{"$nulls":17},{"$f":"IF(R16=\"\",\"\",\"Bitte Eingaben in den Zellen I8 und I16 prüfen!\")","v":""}]
["Eigenleistungen",{"$nulls":3},"Anzahl der Stunden",{"$nulls":3},"je Stunde",{"$nulls":3},"in EUR"]
["01.01. - 31.12.2024",{"$nulls":7},{"v":12.41,"d":"12.41 €"},{"$nulls":3},{"$f":"E19*I19","v":0}]
[]
["Eigenanteil",{"$nulls":3},"Eigenmittel in %",{"$nulls":3},"Eigenleistungen in %",{"$nulls":3}," = Eigenanteil in %"]
[{"$nulls":4},{"$f":"ROUND(M15*100/M8,1)","v":{"$error":"#DIV/0!"}},{"$nulls":3},{"$f":"ROUND((M19)*100/(M8+M19),1)","v":{"$error":"#DIV/0!"}},{"$nulls":3},{"$f":"ROUND((M19+M15)*100/(M8+M19),1)","v":{"$error":"#DIV/0!"}},{"$nulls":4}," <-- Es muss ein Eigenanteil von mindestens 5 % sein!"]
[]
["Differenzierte Darstellung der ggf. weiteren öffentlichen Mittel und sonstigen Finanzierungsquellen"]
["Zuwendungsgeber/Einnahmequelle",{"$nulls":11},"Betrag in EUR"]
[]
[]
[]
[]
[]
[]
["Bemerkungen"]
[{"$nulls":17},"Sie möchten Absätze im Eingabefeld einfügen? \n-> Alt+Enter"]
{"$rows_empty":7}
["Datum ",null,null,"Stempel",{"$nulls":5},"Unterschrift (zusätzlich noch Blockschrift)"]

{"sheet":"Ausgaben","index":2,"n_rows":39,"n_cols":22,"rows_kept":39,"merged":[[0,0,0,5],[0,6,0,12],[0,14,0,18],[2,0,2,9],[2,10,2,11],[3,0,3,5],[3,6,3,18],[4,0,4,5],[4,6,4,18],[5,0,5,12],[5,13,5,15],[5,16,5,18],[6,0,17,0],[6,11,6,12],[6,13,6,15],[7,13,7,15],[8,11,8,12],[8,13,8,15],[9,11,9,12],[9,13,9,15],[10,11,10,12],[10,13,10,15],[11,2,11,12],[11,13,11,15],[12,2,12,12],[12,13,12,15],[13,2,13,12],[13,13,13,15],[14,2,14,12],[14,13,14,15],[15,2,15,12],[15,13,15,15],[16,13,16,15],[16,16,16,18],[17,13,17,15],[17,16,17,18],[18,0,23,0],[18,2,18,12],[18,13,18,15],[18,21,24,24],[19,2,19,12],[19,13,19,15],[20,2,20,12],[20,13,20,15],[21,2,21,12],[21,13,21,15],[22,2,22,12],[22,13,22,15],[22,16,22,18],[23,2,23,12],[23,13,23,15],[23,16,23,18],[24,0,31,0],[24,13,24,15],[25,13,25,15],[26,2,26,12],[26,13,26,15],[27,2,27,12],[27,13,27,15],[28,2,28,12],[28,13,28,15],[29,2,29,12],[29,13,29,15],[30,2,30,12],[30,13,30,15],[30,16,30,18],[31,2,31,12],[31,13,31,15],[31,16,31,18],[32,0,33,0],[32,2,32,12],[32,13,32,15],[32,16,32,18],[33,2,33,12],[33,13,33,15],[33,16,33,18],[34,0,35,0],[34,13,34,15],[34,16,34,18],[35,2,35,12],[35,13,35,15],[35,16,35,18],[36,13,36,15],[36,16,36,18],[37,13,37,15],[37,16,37,18],[38,13,38,15],[38,16,38,18]]}
["Landeshauptstadt Dresden - Jugendamt",{"$nulls":5},{"$f":"'Ausgaben_ Finanzierung_ges'!G1:K1","v":"Verwendungsnachweis 2024"},{"$nulls":6},"AZ:",{"$f":"'Ausgaben_ Finanzierung_ges'!N1","v":"117.00.03.SP24"}]
[]
["Sachausgaben zur Jugendverbandsarbeit",{"$nulls":9},{"$f":"'Ausgaben_ Finanzierung_ges'!N3","v":2024}]
["Name der durchführenden Kirchgemeinde:",{"$nulls":5},{"$f":"IF('Ausgaben_ Finanzierung_ges'!F5>0,'Ausgaben_ Finanzierung_ges'!F5,\"\")","v":""}]
["Veranstaltung (Name und Datum):",{"$nulls":5},{"$f":"IF('Ausgaben_ Finanzierung_ges'!F6>0,'Ausgaben_ Finanzierung_ges'!F6,\" \")","v":"Gruppenarbeit 01.01. - 31.12.2024"}]
["Ausgaben",{"$nulls":12},"EUR"]
["1. Gebäude-/Bewirtschaftungsausgaben","1.1","Miete (Kaltmiete/Betriebskosten)",{"$nulls":7},"vom Angebot genutzte Fläche in m²"]
[null,"1.2","weitere Betriebskosten einschl. Medien"]
[null,"1.3","Gebäudepacht/Erbbauzins",{"$nulls":7},"vom Angebot genutzte Fläche in m²"]
[null,"1.4.1","Nutzungsentgelt für fremde Räume",{"$nulls":7},"Anzahl der Nutzungsstunden ges."]
[null,"1.4.2","Nutzungsentgelt für eigene Räume ",{"$nulls":7},"Anzahl der Nutzungsstunden ges."]
[null,"1.5","Reinigungskosten, Hausverbrauchsmaterial, Müllentsorgung"]
[null,"1.6","Erhaltungsaufwand/Reparaturkosten bewegliche Sachen"]
[null,"1.7","Werterhaltung/Reparaturkosten Räume/Grundstück"]
[null,"1.8","Abschreibungen auf Gebäude (ggf. anteilig entsprechend der Nutzungsfläche)                                                                                            "]
[null,"1.9","Gebühren/Beiträge/Steuern/ Versicherungen Gebäude/Inventar       "]
[null,"1.10","Reinigungsdienste",{"$nulls":13},"Summe 1."]
[null,"1.11"," Hausmeisterdienste",{"$nulls":13},{"$f":"SUM(N7:P18)","v":{"v":0,"d":"0.00"}}]
["2. Ausgaben im Rahmen der sozialpäd. Arbeit","2.1","Verbrauchsmaterialien/bewegliche Sachen für die inhaltliche Arbeit ",{"$nulls":10},{"$f":"'2.1 (1)'!F43+'2.1 (2)'!F43","v":{"v":0,"d":"0.00"}},{"$nulls":6},2,"Daten werden aus den \nnachfolgenden Reitern übertragen."]
[null,"2.2","Eintrittsgelder, Fahrtkosten für spontane Gruppenaktivitäten außer Haus",{"$nulls":10},{"$f":"'2.2 (1)'!F43+'2.2 (2)'!F43","v":{"v":0,"d":"0.00"}},{"$nulls":6},2]
[null,"2.3","Ausgaben für Feste/Veranstaltungen (inkl. Honorar)"]
[null,"2.4","Honorare für Künstler/-innen und/oder Einzelprojektleitung\n(nicht für zeitlich begrenzte Maßnahmen, Feste/Veranstaltungen)",{"$nulls":10},{"$f":"'2.4'!F29","v":{"v":0,"d":"0.00"}},{"$nulls":6},1]
[null,"2.5","Lebensmittel",{"$nulls":10},{"$f":"'2.5 (1)'!F27+'2.5 (2)'!F27+'2.5 (3)'!F27","v":{"v":0,"d":"0.00"}},null,null,"Summe 2.",{"$nulls":3},3]
[null,"2.6","sonstige Ausgaben im Rahmen der sozialpädagogischen Arbeit",{"$nulls":10},{"$f":"'2.6'!F42","v":{"v":0,"d":"0.00"}},null,null,{"$f":"SUM(N19:P24)","v":{"v":0,"d":"0.00"}},{"$nulls":3},1]
["3. weitere Sachausgaben","3.1","Telekommunikation, Internetnutzung",{"$nulls":10},{"$f":"'3.1'!F36","v":{"v":0,"d":"0.00"}},{"$nulls":6},1]
[null,"3.2","Geringwertige Wirtschaftsgüter/bewegliche Sachen des Anlagevermögens (BS)",{"$nulls":10},{"$f":"'3.2'!F39","v":{"v":0,"d":"0.00"}},{"$nulls":6},1]
[null,"3.3","Ausgaben für Dienst-Kfz  (i. d. R. anteilig entsprechend dem Nutzungsanteil für das Angebot)"]
[null,"3.4","Dienstgänge: Fahrtkostenerstattung Nutzung Privat-Kfz / Stadtfahrten",null,"Privat-Kfz","überwiegende Nutzung                                für das Angebot?"]
[null,"3.5","Fort- u. Weiterbildungskosten (einschl. Reise- und Übernachtungskosten), Ausgaben für Fachtagungen/Supervision für haupt- und nebenberufliche Mitarbeiter/-innen"]
[null,"3.6","Ausgaben für Freiwilligendienste/Ausbildungsvergütung für Studierende"]
[null,"3.7","Aufwandsentschädigung Ehrenamtliche/Praktikanten/-innen",{"$nulls":10},{"$f":"'3.7'!F24","v":{"v":0,"d":"0.00"}},null,null,"Summe 3.",{"$nulls":3},1]
[null,"3.8","sonstige Ausgaben (im Rahmen der Antragstellung)",{"$nulls":10},{"$f":"'3.8'!F32","v":{"v":0,"d":"0.00"}},null,null,{"$f":"SUM(N25:P32)","v":{"v":0,"d":"0.00"}},{"$nulls":3},1]
["4. Verwaltung","4.1","Verwaltungsaufwendungen im Angebot (Büromat.,Porto,öff.Bekanntmachungen, Ausstattung, Leasing/Wartung Bürotechnik, Buchhaltung, Gehaltsberechnung)",{"$nulls":10},{"$f":"'4.1'!F31","v":{"v":0,"d":"0.00"}},null,null,"Summe 4.",{"$nulls":3},2]
[null,"4.2","Verwaltungsumlage (Sach- und Personalausgaben für die zentrale Verwaltung, Planung, Steuerung und Kontrolle; gilt nicht bei Geschäftsstellenförderung)",{"$nulls":13},{"$f":"SUM(N33:P34)","v":0}]
["5. zeitlich begrenzte Maßnahmen","5.1","Bildungsmaßnahmen (BM) gesamt (Summe der Folgeblätter)",{"$nulls":10},{"$f":"'BM I'!L17+'BM II'!N19","v":{"v":0,"d":"0.00"}},null,null,"Summe 5."]
[null,"5.2","Erlebnispädagogische Maßnahmen (EPM) gesamt (Summe der Folgeblätter)",{"$nulls":10},{"$f":"EPM!L15","v":{"v":0,"d":"0.00"}},null,null,{"$f":"SUM(N35:P36)","v":0}]
["Sachausgaben gesamt:",{"$nulls":12},{"$f":"SUM(N7:P36)","v":{"v":0,"d":"0.00"}}]
["Personalausgaben gesamt:",{"$nulls":12},{"v":0,"d":"0.00"}]
["Sach- und Personalausgaben gesamt:",{"$nulls":12},{"$f":"N37+N38","v":{"v":0,"d":"0.00"}}]

{"sheet":"2.1 (1)","index":3,"n_rows":43,"n_cols":6,"rows_kept":43,"merged":[[0,0,0,2],[0,3,0,5],[1,1,1,3],[2,1,2,3],[3,1,3,3],[4,1,4,5],[5,0,5,5],[6,2,6,3],[7,2,7,3],[8,2,8,3],[9,2,9,3],[10,2,10,3],[11,2,11,3],[12,2,12,3],[13,2,13,3],[14,2,14,3],[15,2,15,3],[16,2,16,3],[17,2,17,3],[18,2,18,3],[19,2,19,3],[20,2,20,3],[21,2,21,3],[22,2,22,3],[23,2,23,3],[24,2,24,3],[25,2,25,3],[26,2,26,3],[27,2,27,3],[28,2,28,3],[29,2,29,3],[30,2,30,3],[31,2,31,3],[32,2,32,3],[33,2,33,3],[34,2,34,3],[35,2,35,3],[36,2,36,3],[37,2,37,3],[38,2,38,3],[39,2,39,3],[40,2,40,3],[41,2,41,3],[42,0,42,4]]}
["Landeshauptstadt Dresden - Jugendamt",null,null,{"$f":"'Ausgaben_ Finanzierung_ges'!G1","v":"Verwendungsnachweis 2024"}]
["KiG:",{"$f":"IF('Ausgaben_ Finanzierung_ges'!F5>0,'Ausgaben_ Finanzierung_ges'!F5,\"\")","v":""},null,null,"AZ:",{"$f":"'Ausgaben_ Finanzierung_ges'!N1","v":"117.00.03.SP24"}]
["Projekt:",{"$f":"'Ausgaben_ Finanzierung_ges'!F6","v":"Gruppenarbeit 01.01. - 31.12.2024"}]
[null,"Nachweis Sachausgabenbelege",null,null,{"$f":"'Ausgaben_ Finanzierung_ges'!N3","v":2024},"Blatt 1"]
[null,"2.1 Verbrauchsmaterialien/bewegliche Sachen für die inhaltliche Arbeit "]
["Bewegliche Sachen sind Gegenstände, die beweglich und selbstständig über einen längeren Zeitraum nutzbar sind. Gegenstände mit einem Anschaffungs- oder Herstellungswert von 150 bis 800 Euro netto (ohne MwSt) sind geringwertige Wirtschaftsgüter (GwG). Gegenstände über 800 Euro netto sind bewegliche Sachen des Anlagevermögens mit Inventarisierungspflicht und Zweckbindungsfrist (BS). BS müssen beantragt und bewilligt worden sein!"]
["Beleg-/ Buchungs-Nr.","Tag der Zahlung","Zahlungsgrund \n(aussagekräftige Beschreibung)",null,"Zahlungsempfänger","Ausgaben\n(in Euro)"]
{"$rows_empty":35}
["gesamt:",{"$nulls":4},{"$f":"SUM(F8:F42)","v":0}]

{"sheet":"2.1 (2)","index":4,"n_rows":43,"n_cols":6,"rows_kept":43,"merged":[[0,0,0,2],[0,3,0,5],[1,1,1,3],[2,1,2,3],[3,1,3,3],[4,1,4,5],[5,0,5,5],[6,2,6,3],[7,2,7,3],[8,2,8,3],[9,2,9,3],[10,2,10,3],[11,2,11,3],[12,2,12,3],[13,2,13,3],[14,2,14,3],[15,2,15,3],[16,2,16,3],[17,2,17,3],[18,2,18,3],[19,2,19,3],[20,2,20,3],[21,2,21,3],[22,2,22,3],[23,2,23,3],[24,2,24,3],[25,2,25,3],[26,2,26,3],[27,2,27,3],[28,2,28,3],[29,2,29,3],[30,2,30,3],[31,2,31,3],[32,2,32,3],[33,2,33,3],[34,2,34,3],[35,2,35,3],[36,2,36,3],[37,2,37,3],[38,2,38,3],[39,2,39,3],[40,2,40,3],[41,2,41,3],[42,0,42,4]]}
["Landeshauptstadt Dresden - Jugendamt",null,null,{"$f":"'Ausgaben_ Finanzierung_ges'!G1","v":"Verwendungsnachweis 2024"}]
["KiG:",{"$f":"IF('Ausgaben_ Finanzierung_ges'!F5>0,'Ausgaben_ Finanzierung_ges'!F5,\"\")","v":""},null,null,"AZ:",{"$f":"'Ausgaben_ Finanzierung_ges'!N1","v":"117.00.03.SP24"}]
["Projekt:",{"$f":"'Ausgaben_ Finanzierung_ges'!F6","v":"Gruppenarbeit 01.01. - 31.12.2024"}]
[null,"Nachweis Sachausgabenbelege",null,null,{"$f":"'Ausgaben_ Finanzierung_ges'!N3","v":2024},"Blatt 2"]
[null,"2.1 Verbrauchsmaterialien/bewegliche Sachen für die inhaltliche Arbeit "]
["Bewegliche Sachen sind Gegenstände, die beweglich und selbstständig über einen längeren Zeitraum nutzbar sind. Gegenstände mit einem Anschaffungs- oder Herstellungswert von 150 bis 800 Euro netto (ohne MwSt) sind geringwertige Wirtschaftsgüter (GwG). Gegenstände über 800 Euro netto sind bewegliche Sachen des Anlagevermögens mit Inventarisierungspflicht und Zweckbindungsfrist (BS). BS müssen beantragt und bewilligt worden sein!"]
["Beleg-/ Buchungs-Nr.","Tag der Zahlung","Zahlungsgrund \n(aussagekräftige Beschreibung)",null,"Zahlungsempfänger","Ausgaben\n(in Euro)"]
{"$rows_empty":35}
["gesamt:",{"$nulls":4},{"$f":"SUM(F8:F42)","v":0}]

{"sheet":"2.2 (1)","index":5,"n_rows":43,"n_cols":6,"rows_kept":43,"merged":[[0,0,0,2],[0,3,0,5],[1,1,1,3],[2,1,2,3],[3,1,3,3],[4,1,4,5],[5,0,5,5],[6,2,6,3],[7,2,7,3],[8,2,8,3],[9,2,9,3],[10,2,10,3],[11,2,11,3],[12,2,12,3],[13,2,13,3],[14,2,14,3],[15,2,15,3],[16,2,16,3],[17,2,17,3],[18,2,18,3],[19,2,19,3],[20,2,20,3],[21,2,21,3],[22,2,22,3],[23,2,23,3],[24,2,24,3],[25,2,25,3],[26,2,26,3],[27,2,27,3],[28,2,28,3],[29,2,29,3],[30,2,30,3],[31,2,31,3],[32,2,32,3],[33,2,33,3],[34,2,34,3],[35,2,35,3],[36,2,36,3],[37,2,37,3],[38,2,38,3],[39,2,39,3],[40,2,40,3],[41,2,41,3],[42,0,42,4]]}
["Landeshauptstadt Dresden - Jugendamt",null,null,{"$f":"'Ausgaben_ Finanzierung_ges'!G1","v":"Verwendungsnachweis 2024"}]
["KiG:",{"$f":"IF('Ausgaben_ Finanzierung_ges'!F5>0,'Ausgaben_ Finanzierung_ges'!F5,\"\")","v":""},null,null,"AZ:",{"$f":"'Ausgaben_ Finanzierung_ges'!N1","v":"117.00.03.SP24"}]
["Projekt:",{"$f":"'Ausgaben_ Finanzierung_ges'!F6","v":"Gruppenarbeit 01.01. - 31.12.2024"}]
[null,"Nachweis Sachausgabenbelege",null,null,{"$f":"'Ausgaben_ Finanzierung_ges'!N3","v":2024},"Blatt 1"]
[null,"2.2 spontane Gruppenaktivitäten außer Haus"]
["Spontane Gruppenaktivitäten außer Haus sind niedrigschwellige Kurzausflüge mit jungen Menschen, die regelmäßige Besucher eines Kinder-/Jugendhauses/-treffs sind."]
["Beleg-/ Buchungs-Nr.","Tag der Zahlung","Zahlungsgrund \n(aussagekräftige Beschreibung)",null,"Zahlungsempfänger","Ausgaben\n(in Euro)"]
{"$rows_empty":35}
["gesamt:",{"$nulls":4},{"$f":"SUM(F8:F42)","v":0}]

{"sheet":"2.2 (2)","index":6,"n_rows":43,"n_cols":6,"rows_kept":43,"merged":[[0,0,0,2],[0,3,0,5],[1,1,1,3],[2,1,2,3],[3,1,3,3],[4,1,4,5],[5,0,5,5],[6,2,6,3],[7,2,7,3],[8,2,8,3],[9,2,9,3],[10,2,10,3],[11,2,11,3],[12,2,12,3],[13,2,13,3],[14,2,14,3],[15,2,15,3],[16,2,16,3],[17,2,17,3],[18,2,18,3],[19,2,19,3],[20,2,20,3],[21,2,21,3],[22,2,22,3],[23,2,23,3],[24,2,24,3],[25,2,25,3],[26,2,26,3],[27,2,27,3],[28,2,28,3],[29,2,29,3],[30,2,30,3],[31,2,31,3],[32,2,32,3],[33,2,33,3],[34,2,34,3],[35,2,35,3],[36,2,36,3],[37,2,37,3],[38,2,38,3],[39,2,39,3],[40,2,40,3],[41,2,41,3],[42,0,42,4]]}
["Landeshauptstadt Dresden - Jugendamt",null,null,{"$f":"'Ausgaben_ Finanzierung_ges'!G1","v":"Verwendungsnachweis 2024"}]
["KiG:",{"$f":"IF('Ausgaben_ Finanzierung_ges'!F5>0,'Ausgaben_ Finanzierung_ges'!F5,\"\")","v":""},null,null,"AZ:",{"$f":"'Ausgaben_ Finanzierung_ges'!N1","v":"117.00.03.SP24"}]
["Projekt:",{"$f":"'Ausgaben_ Finanzierung_ges'!F6","v":"Gruppenarbeit 01.01. - 31.12.2024"}]
[null,"Nachweis Sachausgabenbelege",null,null,{"$f":"'Ausgaben_ Finanzierung_ges'!N3","v":2024},"Blatt 2"]
[null,"2.2 spontane Gruppenaktivitäten außer Haus"]
["Spontane Gruppenaktivitäten außer Haus sind niedrigschwellige Kurzausflüge mit jungen Menschen, die regelmäßige Besucher eines Kinder-/Jugendhauses/-treffs sind."]
["Beleg-/ Buchungs-Nr.","Tag der Zahlung","Zahlungsgrund \n(aussagekräftige Beschreibung)",null,"Zahlungsempfänger","Ausgaben\n(in Euro)"]
{"$rows_empty":35}
["gesamt:",{"$nulls":4},{"$f":"SUM(F8:F42)","v":0}]

{"sheet":"2.4","index":7,"n_rows":29,"n_cols":6,"rows_kept":29,"merged":[[0,0,0,2],[0,3,0,5],[1,1,1,2],[2,1,2,2],[3,1,3,2],[4,1,4,5],[5,0,5,5],[28,0,28,4]]}
["Landeshauptstadt Dresden - Jugendamt",null,null,{"$f":"'Ausgaben_ Finanzierung_ges'!G1","v":"Verwendungsnachweis 2024"}]
["KiG:",{"$f":"IF('Ausgaben_ Finanzierung_ges'!F5>0,'Ausgaben_ Finanzierung_ges'!F5,\"\")","v":""},null,null,"AZ:",{"$f":"'Ausgaben_ Finanzierung_ges'!N1","v":"117.00.03.SP24"}]
["Projekt:",{"$f":"'Ausgaben_ Finanzierung_ges'!F6","v":"Gruppenarbeit 01.01. - 31.12.2024"}]
[null,"Nachweis Sachausgabenbelege",null,null,{"$f":"'Ausgaben_ Finanzierung_ges'!N3","v":2024},"Blatt 1"]
[null,"2.4 Honorare für Künstler/-innen und/oder Einzelprojektleitung"]
["(hier sind nicht die Honorare im Rahmen zeitlich begrenzter Maßnahmen, von Festen/Veranstaltungen oder für Verwaltungsaufgaben zu erfassen)"]
[]
["Beleg-/ Buchungs-Nr.","Tag der Zahlung","Kurzbeschreibung der Leistung / Name der Honorarkraft sofern nicht Zahlungsempfänger","Anzahl der honorierten Stunden","Zahlungsempfänger","Ausgaben\n(in Euro)"]
{"$rows_empty":20}
["gesamt:",{"$nulls":4},{"$f":"SUM(F9:F28)","v":0}]

{"sheet":"2.5 (1)","index":8,"n_rows":27,"n_cols":6,"rows_kept":27,"merged":[[0,0,0,2],[0,3,0,5],[1,1,1,3],[2,1,2,3],[3,1,3,3],[4,1,4,5],[5,0,5,5],[6,2,6,3],[7,2,7,3],[8,2,8,3],[9,2,9,3],[10,2,10,3],[11,2,11,3],[12,2,12,3],[13,2,13,3],[14,2,14,3],[15,2,15,3],[16,2,16,3],[17,2,17,3],[18,2,18,3],[19,2,19,3],[20,2,20,3],[21,2,21,3],[22,2,22,3],[23,2,23,3],[24,2,24,3],[25,2,25,3],[26,0,26,4]]}
["Landeshauptstadt Dresden - Jugendamt",null,null,{"$f":"'Ausgaben_ Finanzierung_ges'!G1","v":"Verwendungsnachweis 2024"}]
["KiG:",{"$f":"IF('Ausgaben_ Finanzierung_ges'!F5>0,'Ausgaben_ Finanzierung_ges'!F5,\"\")","v":""},null,null,"AZ:",{"$f":"'Ausgaben_ Finanzierung_ges'!N1","v":"117.00.03.SP24"}]
["Projekt:",{"$f":"'Ausgaben_ Finanzierung_ges'!F6","v":"Gruppenarbeit 01.01. - 31.12.2024"}]
[null,"Nachweis Sachausgabenbelege",null,null,{"$f":"'Ausgaben_ Finanzierung_ges'!N3","v":2024},"Blatt 1"]
[null,"2.5 Lebensmittel"]
["(Lebensmittel sind nur zuwendungsfähig (max. 500 EUR/Jahr), wenn deren Einsatz notwendig ist, um den Zuwendungszweck zu erreichen; Verpflegungskosten zählen grundsätzlich nicht dazu; sie sind aus Teilnahmebeiträgen oder anderen Mitteln zu finanzieren)"]
["Beleg-/ Buchungs-Nr.","Tag der Zahlung","Zahlungsgrund\n(Einsatz für ...)",null,"Zahlungsempfänger","Ausgaben\n(in Euro)"]
{"$rows_empty":19}
["gesamt:",{"$nulls":4},{"$f":"SUM(F8:F26)","v":0}]

{"sheet":"2.5 (2)","index":9,"n_rows":27,"n_cols":6,"rows_kept":27,"merged":[[0,0,0,2],[0,3,0,5],[1,1,1,3],[2,1,2,3],[3,1,3,3],[4,1,4,5],[5,0,5,5],[6,2,6,3],[7,2,7,3],[8,2,8,3],[9,2,9,3],[10,2,10,3],[11,2,11,3],[12,2,12,3],[13,2,13,3],[14,2,14,3],[15,2,15,3],[16,2,16,3],[17,2,17,3],[18,2,18,3],[19,2,19,3],[20,2,20,3],[21,2,21,3],[22,2,22,3],[23,2,23,3],[24,2,24,3],[25,2,25,3],[26,0,26,4]]}
["Landeshauptstadt Dresden - Jugendamt",null,null,{"$f":"'Ausgaben_ Finanzierung_ges'!G1","v":"Verwendungsnachweis 2024"}]
["KiG:",{"$f":"IF('Ausgaben_ Finanzierung_ges'!F5>0,'Ausgaben_ Finanzierung_ges'!F5,\"\")","v":""},null,null,"AZ:",{"$f":"'Ausgaben_ Finanzierung_ges'!N1","v":"117.00.03.SP24"}]
["Projekt:",{"$f":"'Ausgaben_ Finanzierung_ges'!F6","v":"Gruppenarbeit 01.01. - 31.12.2024"}]
[null,"Nachweis Sachausgabenbelege",null,null,{"$f":"'Ausgaben_ Finanzierung_ges'!N3","v":2024},"Blatt 2"]
[null,"2.5 Lebensmittel"]
["(Lebensmittel sind nur zuwendungsfähig (max. 500 EUR/Jahr), wenn deren Einsatz notwendig ist, um den Zuwendungszweck zu erreichen; Verpflegungskosten zählen grundsätzlich nicht dazu; sie sind aus Teilnahmebeiträgen oder anderen Mitteln zu finanzieren)"]
["Beleg-/ Buchungs-Nr.","Tag der Zahlung","Zahlungsgrund\n(Einsatz für ...)",null,"Zahlungsempfänger","Ausgaben\n(in Euro)"]
{"$rows_empty":19}
["gesamt:",{"$nulls":4},{"$f":"SUM(F8:F26)","v":0}]

{"sheet":"2.5 (3)","index":10,"n_rows":27,"n_cols":6,"rows_kept":27,"merged":[[0,0,0,2],[0,3,0,5],[1,1,1,3],[2,1,2,3],[3,1,3,3],[4,1,4,5],[5,0,5,5],[6,2,6,3],[7,2,7,3],[8,2,8,3],[9,2,9,3],[10,2,10,3],[11,2,11,3],[12,2,12,3],[13,2,13,3],[14,2,14,3],[15,2,15,3],[16,2,16,3],[17,2,17,3],[18,2,18,3],[19,2,19,3],[20,2,20,3],[21,2,21,3],[22,2,22,3],[23,2,23,3],[24,2,24,3],[25,2,25,3],[26,0,26,4]]}
["Landeshauptstadt Dresden - Jugendamt",null,null,{"$f":"'Ausgaben_ Finanzierung_ges'!G1","v":"Verwendungsnachweis 2024"}]
["KiG:",{"$f":"IF('Ausgaben_ Finanzierung_ges'!F5>0,'Ausgaben_ Finanzierung_ges'!F5,\"\")","v":""},null,null,"AZ:",{"$f":"'Ausgaben_ Finanzierung_ges'!N1","v":"117.00.03.SP24"}]
["Projekt:",{"$f":"'Ausgaben_ Finanzierung_ges'!F6","v":"Gruppenarbeit 01.01. - 31.12.2024"}]
[null,"Nachweis Sachausgabenbelege",null,null,{"$f":"'Ausgaben_ Finanzierung_ges'!N3","v":2024},"Blatt 3"]
[null,"2.5 Lebensmittel"]
["(Lebensmittel sind nur zuwendungsfähig (max. 500 EUR/Jahr), wenn deren Einsatz notwendig ist, um den Zuwendungszweck zu erreichen; Verpflegungskosten zählen grundsätzlich nicht dazu; sie sind aus Teilnahmebeiträgen oder anderen Mitteln zu finanzieren)"]
["Beleg-/ Buchungs-Nr.","Tag der Zahlung","Zahlungsgrund\n(Einsatz für ...)",null,"Zahlungsempfänger","Ausgaben\n(in Euro)"]
{"$rows_empty":19}
["gesamt:",{"$nulls":4},{"$f":"SUM(F8:F26)","v":0}]

{"sheet":"2.6","index":11,"n_rows":42,"n_cols":6,"rows_kept":42,"merged":[[0,0,0,2],[0,3,0,5],[1,1,1,3],[2,1,2,3],[3,1,3,3],[4,1,4,5],[5,0,5,5],[6,2,6,3],[7,2,7,3],[8,2,8,3],[9,2,9,3],[10,2,10,3],[11,2,11,3],[12,2,12,3],[13,2,13,3],[14,2,14,3],[15,2,15,3],[16,2,16,3],[17,2,17,3],[18,2,18,3],[19,2,19,3],[20,2,20,3],[21,2,21,3],[22,2,22,3],[23,2,23,3],[24,2,24,3],[25,2,25,3],[26,2,26,3],[27,2,27,3],[28,2,28,3],[29,2,29,3],[30,2,30,3],[31,2,31,3],[32,2,32,3],[33,2,33,3],[34,2,34,3],[35,2,35,3],[36,2,36,3],[37,2,37,3],[38,2,38,3],[39,2,39,3],[40,2,40,3],[41,0,41,4]]}
["Landeshauptstadt Dresden - Jugendamt",null,null,{"$f":"'Ausgaben_ Finanzierung_ges'!G1","v":"Verwendungsnachweis 2024"}]
["KiG:",{"$f":"IF('Ausgaben_ Finanzierung_ges'!F5>0,'Ausgaben_ Finanzierung_ges'!F5,\"\")","v":""},null,null,"AZ:",{"$f":"'Ausgaben_ Finanzierung_ges'!N1","v":"117.00.03.SP24"}]
["Projekt:",{"$f":"'Ausgaben_ Finanzierung_ges'!F6","v":"Gruppenarbeit 01.01. - 31.12.2024"}]
[null,"Nachweis Sachausgabenbelege",null,null,{"$f":"'Ausgaben_ Finanzierung_ges'!N3","v":2024},"Blatt 1"]
[null,"2.6 sonstige Ausgaben für die sozialpädagogische Arbeit"]
["(müssen im Fördermittelantrag benannt worden sein)"]
["Beleg-/ Buchungs-Nr.","Tag der Zahlung","Zahlungsgrund \n(aussagekräftige Beschreibung)",null,"Zahlungsempfänger","Ausgaben\n(in Euro)"]
{"$rows_empty":34}
["gesamt:",{"$nulls":4},{"$f":"SUM(F8:F41)","v":0}]

{"sheet":"3.1","index":12,"n_rows":36,"n_cols":6,"rows_kept":36,"merged":[[0,0,0,2],[0,3,0,5],[1,1,1,3],[2,1,2,3],[3,1,3,3],[4,1,4,5],[5,0,5,5],[6,2,6,3],[7,2,7,3],[8,2,8,3],[9,2,9,3],[10,2,10,3],[11,2,11,3],[12,2,12,3],[13,2,13,3],[14,2,14,3],[15,2,15,3],[16,2,16,3],[17,2,17,3],[18,2,18,3],[19,2,19,3],[20,2,20,3],[21,2,21,3],[22,2,22,3],[23,2,23,3],[24,2,24,3],[25,2,25,3],[26,2,26,3],[27,2,27,3],[28,2,28,3],[29,2,29,3],[30,2,30,3],[31,2,31,3],[32,2,32,3],[33,2,33,3],[34,2,34,3],[35,0,35,4]]}
["Landeshauptstadt Dresden - Jugendamt",null,null,{"$f":"'Ausgaben_ Finanzierung_ges'!G1","v":"Verwendungsnachweis 2024"}]
["KiG:",{"$f":"IF('Ausgaben_ Finanzierung_ges'!F5>0,'Ausgaben_ Finanzierung_ges'!F5,\"\")","v":""},null,null,"AZ:",{"$f":"'Ausgaben_ Finanzierung_ges'!N1","v":"117.00.03.SP24"}]
["Projekt:",{"$f":"'Ausgaben_ Finanzierung_ges'!F6","v":"Gruppenarbeit 01.01. - 31.12.2024"}]
[null,"Nachweis Sachausgabenbelege",null,null,{"$f":"'Ausgaben_ Finanzierung_ges'!N3","v":2024},"Blatt 1"]
[null,"3.1 Telekommunikation, Internetnutzung"]
[]
["Beleg-/ Buchungs-Nr.","Tag der Zahlung","Zahlungsgrund ",null,"Zahlungsempfänger","Ausgaben\n(in Euro)"]
{"$rows_empty":28}
["gesamt:",{"$nulls":4},{"$f":"SUM(F8:F35)","v":0}]

{"sheet":"3.2","index":13,"n_rows":39,"n_cols":6,"rows_kept":39,"merged":[[0,0,0,2],[0,3,0,5],[1,1,1,3],[2,1,2,3],[3,1,3,3],[4,1,4,5],[5,0,5,5],[6,2,6,3],[7,2,7,3],[8,2,8,3],[9,2,9,3],[10,2,10,3],[11,2,11,3],[12,2,12,3],[13,2,13,3],[14,2,14,3],[15,2,15,3],[16,2,16,3],[17,2,17,3],[18,2,18,3],[19,2,19,3],[20,2,20,3],[21,2,21,3],[22,2,22,3],[23,2,23,3],[24,2,24,3],[25,2,25,3],[26,2,26,3],[27,2,27,3],[28,2,28,3],[29,2,29,3],[30,2,30,3],[31,2,31,3],[32,2,32,3],[33,2,33,3],[34,2,34,3],[35,2,35,3],[36,2,36,3],[37,2,37,3],[38,0,38,4]]}
["Landeshauptstadt Dresden - Jugendamt",null,null,{"$f":"'Ausgaben_ Finanzierung_ges'!G1","v":"Verwendungsnachweis 2024"}]
["KiG:",{"$f":"IF('Ausgaben_ Finanzierung_ges'!F5>0,'Ausgaben_ Finanzierung_ges'!F5,\"\")","v":""},null,null,"AZ:",{"$f":"'Ausgaben_ Finanzierung_ges'!N1","v":"117.00.03.SP24"}]
["Projekt:",{"$f":"'Ausgaben_ Finanzierung_ges'!F6","v":"Gruppenarbeit 01.01. - 31.12.2024"}]
[null,"Nachweis Sachausgabenbelege",null,null,{"$f":"'Ausgaben_ Finanzierung_ges'!N3","v":2024},"Blatt 1"]
[null,"3.2 Geringwertige Wirtschaftsgüter/bewegliche Sachen des Anlagevermögens (BS)"]
["Wirtschaftsgüter/Gegenstände mit einem Anschaffungs- oder Herstellungswert bis 800 Euro netto (ohne MwSt) sind geringwertige Wirtschaftsgüter (GwG). Gegenstände über 800 Euro netto sind bewegliche Sachen des Anlagevermögens mit Inventarisierungspflicht und Zweckbindungsfrist (BS). BS müssen beantragt und bewilligt worden sein!"]
["Beleg-/ Buchungs-Nr.","Tag der Zahlung","Zahlungsgrund \n(aussagekräftige Beschreibung)",null,"Zahlungsempfänger","Ausgaben\n(in Euro)"]
{"$rows_empty":31}
["gesamt:",{"$nulls":4},{"$f":"SUM(F8:F38)","v":0}]

{"sheet":"3.7","index":14,"n_rows":24,"n_cols":9,"rows_kept":24,"merged":[[0,0,0,2],[0,3,0,5],[1,1,1,3],[2,1,2,3],[3,1,3,3],[4,1,4,5],[23,0,23,4]]}
["Landeshauptstadt Dresden - Jugendamt",null,null,{"$f":"'Ausgaben_ Finanzierung_ges'!G1","v":"Verwendungsnachweis 2024"}]
["KiG:",{"$f":"IF('Ausgaben_ Finanzierung_ges'!F5>0,'Ausgaben_ Finanzierung_ges'!F5,\"\")","v":""},null,null,"AZ:",{"$f":"'Ausgaben_ Finanzierung_ges'!N1","v":"117.00.03.SP24"}]
["Projekt:",{"$f":"'Ausgaben_ Finanzierung_ges'!F6","v":"Gruppenarbeit 01.01. - 31.12.2024"}]
[null,"Nachweis Sachausgabenbelege",null,null,{"$f":"'Ausgaben_ Finanzierung_ges'!N3","v":2024},"Blatt 1"]
[null,"3.7 Aufwandsentschädigung an Ehrenamtliche/Praktikanten/-innen"]
[]
["Beleg-/ Buchungs-Nr.","Tag der Zahlung","Zahlungsgrund\n(Name, kurze Einsatzbeschreibung, Einsatzort )","Name\n(Zahlungsempfänger)","Einsatz-\nzeitraum","Ausgaben\n(in Euro)",null,"Die Entschädigung muss angemessen sein. Der Zuwendungsempfänger hat mit dem Leistenden Art, Umfang der Tätigkeit und den Entschädigungsbetrag schriftlich zu vereinbaren.","max. 100,00 EUR pro Person und Monat"]
{"$rows_empty":16}
["gesamt:",{"$nulls":4},{"$f":"SUM(F8:F23)","v":0}]

{"sheet":"3.8","index":15,"n_rows":32,"n_cols":6,"rows_kept":32,"merged":[[0,0,0,2],[0,3,0,5],[1,1,1,3],[2,1,2,3],[3,1,3,3],[4,1,4,5],[5,0,5,5],[6,0,6,5],[7,2,7,3],[8,2,8,3],[9,2,9,3],[10,2,10,3],[11,2,11,3],[12,2,12,3],[13,2,13,3],[14,2,14,3],[15,2,15,3],[16,2,16,3],[17,2,17,3],[18,2,18,3],[19,2,19,3],[20,2,20,3],[21,2,21,3],[22,2,22,3],[23,2,23,3],[24,2,24,3],[25,2,25,3],[26,2,26,3],[27,2,27,3],[28,2,28,3],[29,2,29,3],[30,2,30,3],[31,0,31,4]]}
["Landeshauptstadt Dresden - Jugendamt",null,null,{"$f":"'Ausgaben_ Finanzierung_ges'!G1","v":"Verwendungsnachweis 2024"}]
["KiG:",{"$f":"IF('Ausgaben_ Finanzierung_ges'!F5>0,'Ausgaben_ Finanzierung_ges'!F5,\"\")","v":""},null,null,"AZ:",{"$f":"'Ausgaben_ Finanzierung_ges'!N1","v":"117.00.03.SP24"}]
["Projekt:",{"$f":"'Ausgaben_ Finanzierung_ges'!F6","v":"Gruppenarbeit 01.01. - 31.12.2024"}]
[null,"Nachweis Sachausgabenbelege",null,null,{"$f":"'Ausgaben_ Finanzierung_ges'!N3","v":2024},"Blatt 1"]
[null,"3.8 sonstige Ausgaben der Rubrik \"weitere Sachausgaben\""]
["(müssen im Fördermittelantrag benannt worden sein)"]
[]
["Beleg-/ Buchungs-Nr.","Tag der Zahlung","Zahlungsgrund ",null,"Zahlungsempfänger","Ausgaben\n(in Euro)"]
{"$rows_empty":23}
["gesamt:",{"$nulls":4},{"$f":"SUM(F9:F31)","v":0}]

{"sheet":"4.1","index":16,"n_rows":31,"n_cols":6,"rows_kept":31,"merged":[[0,0,0,2],[0,3,0,5],[1,1,1,3],[2,1,2,3],[3,1,3,3],[4,1,4,5],[5,0,5,5],[6,0,6,5],[7,2,7,3],[8,2,8,3],[9,2,9,3],[10,2,10,3],[11,2,11,3],[12,2,12,3],[13,2,13,3],[14,2,14,3],[15,2,15,3],[16,2,16,3],[17,2,17,3],[18,2,18,3],[19,2,19,3],[20,2,20,3],[21,2,21,3],[22,2,22,3],[23,2,23,3],[24,2,24,3],[25,2,25,3],[26,2,26,3],[27,2,27,3],[28,2,28,3],[29,2,29,3],[30,0,30,4]]}
["Landeshauptstadt Dresden - Jugendamt",null,null,{"$f":"'Ausgaben_ Finanzierung_ges'!G1","v":"Verwendungsnachweis 2024"}]
["KiG:",{"$f":"IF('Ausgaben_ Finanzierung_ges'!F5>0,'Ausgaben_ Finanzierung_ges'!F5,\"\")","v":""},null,null,"AZ:",{"$f":"'Ausgaben_ Finanzierung_ges'!N1","v":"117.00.03.SP24"}]
["Projekt:",{"$f":"'Ausgaben_ Finanzierung_ges'!F6","v":"Gruppenarbeit 01.01. - 31.12.2024"}]
[null,"Nachweis Sachausgabenbelege",null,null,{"$f":"'Ausgaben_ Finanzierung_ges'!N3","v":2024},"Blatt 1"]
[null,"4.1 Verwaltungsaufwendungen im Angebot"]
["(z. B. Büromaterial, Porto, Ausgaben für öffentliche Bekanntmachungen, Anschaffung/Leasing/Wartung Bürotechnik, Ausgaben für Buchhaltung/Gehaltsberechnung)"]
[]
["Beleg-/ Buchungs-Nr.","Tag der Zahlung","Zahlungsgrund ",null,"Zahlungsempfänger","Ausgaben\n(in Euro)"]
{"$rows_empty":22}
["gesamt:",{"$nulls":4},{"$f":"SUM(F9:F30)","v":0}]

{"sheet":"BM I","index":17,"n_rows":35,"n_cols":20,"rows_kept":35,"hidden":true,"merged":[[0,0,0,5],[0,6,0,10],[0,13,0,16],[2,0,2,9],[2,14,2,16],[3,0,3,13],[5,0,5,5],[5,6,5,16],[6,0,6,5],[6,6,6,16],[8,0,9,0],[8,1,9,3],[8,6,9,7],[8,11,8,13],[8,14,8,16],[8,19,17,19],[9,11,9,13],[9,14,9,16],[10,0,14,0],[10,10,11,10],[10,11,11,13],[10,14,11,16],[11,1,12,4],[11,5,12,5],[11,6,12,8],[11,9,12,9],[12,10,13,10],[12,11,13,13],[12,14,13,16],[13,1,14,4],[13,5,14,5],[13,6,14,8],[13,9,14,9],[14,10,15,10],[14,11,15,13],[14,14,15,16],[15,0,17,5],[15,6,15,7],[15,8,15,9],[16,6,17,7],[16,8,17,9],[16,10,17,10],[16,11,17,13],[16,14,17,16],[18,0,18,16],[19,0,19,16],[20,0,20,16],[26,0,29,16],[26,17,29,18],[26,19,29,19],[31,0,33,3]]}
["Landeshauptstadt Dresden - Jugendamt",{"$nulls":5},{"$f":"'Ausgaben_ Finanzierung_ges'!G1:K1","v":"Verwendungsnachweis 2024"},{"$nulls":5},"AZ:",{"$f":"'Ausgaben_ Finanzierung_ges'!N1:P1","v":"117.00.03.SP24"}]
[]
["Bildungsmaßnahmen",{"$nulls":9},{"$f":"'Ausgaben_ Finanzierung_ges'!N3","v":2024},{"$nulls":3},"BM I - Blatt 1"]
["Seminare/Exkursionen mit mind. 6 Seminar-/Exkursionsstunden pro Tag\n(Nachweis mit BE-Kennzeichnung im Ablaufplan)"]
[]
["Name der durchführenden Kirchgemeinde:",{"$nulls":5},{"$f":"IF('Ausgaben_ Finanzierung_ges'!F6>0,'Ausgaben_ Finanzierung_ges'!F6,\"\")","v":"Gruppenarbeit 01.01. - 31.12.2024"}]
["Veranstaltung (Name und Datum):",{"$nulls":5},{"$f":"IF('Ausgaben_ Finanzierung_ges'!F7>0,'Ausgaben_ Finanzierung_ges'!F7,\" \")","v":" "}]
[]
["1.","Tage ohne                             Übernachtung:",null,null,"Tage","TN*","Tage mit                                        Übernachtung:",null,"Anzahl der Ü","TN*","Ausgaben ","in EUR",null,null,"max. möglicher Zuschuss",{"$nulls":4},"Besteht eine BM z.B. aus 2 Tagen mit je 6 Seminar-/Exkursionsstunden und einer Übernachtung, ist ein Tag ohne Übernachtung und ein Tag mit Übernachtung einzutragen."]
[{"$nulls":10},"Honorarkosten",{"$nulls":3},{"$f":"IF(((F12+F14+J12+J14)*25)>L10,L10,((F12+F14+J12+J14)*25))","v":0}]
["Referenten","Name, Vorname",{"$nulls":3},"Stunden","Name, Vorname",null,null,"Stunden","Fahrt-, Reise-,                     Transportkosten",{"$nulls":3},{"$f":"IF(E10+F10+I10+J10=0,0,L11*35/100)","v":0}]
[]
[{"$nulls":10},"Betreuerkosten",{"$nulls":3},{"$f":"IF((O15*12.5/100)<L13,(O15*12.5/100),L13)","v":0}]
[]
[{"$nulls":10},"weitere Ausgaben (z. B. f. Unterkunft, Programmkosten)",{"$nulls":3},{"$f":"(E10*F10*5)+(I10*J10*10)","v":0}]
["eingenommene Teilnahmebeiträge",{"$nulls":5},"EUR pro Person",null,"EUR gesamt"]
[{"$nulls":10},"Summe",{"$f":"SUM(L10:N15)","v":0},null,null,{"$f":"IF(L17-I17<          (IF((SUM(O10:Q16))>L17,L17,(SUM(O10:Q16)))), L17-I17,  (IF((SUM(O10:Q16))>L17,L17,(SUM(O10:Q16)))))","v":0}]
[]
["Kurzbeschreibung (Inhalt, Zielgruppe, Datum von-bis)"]
[{"$nulls":19},"Sie möchten Absätze im Eingabefeld einfügen? \n-> Alt+Enter"]
["--> Detailierte Angaben zur Veranstaltung können aus der QM Auswertung entnommen werden."]
[]
[]
[]
[]
["evtl. Bemerkungen"]
[{"$nulls":19},"Sie möchten Absätze im Eingabefeld einfügen? \n-> Alt+Enter"]
{"$rows_empty":7}
["Datum ",{"$nulls":5},"Stempel",{"$nulls":6},"Unterschrift"]

{"sheet":"BM II","index":18,"n_rows":34,"n_cols":21,"rows_kept":34,"hidden":true,"merged":[[0,0,0,6],[0,7,0,12],[0,16,0,18],[2,0,2,11],[2,12,2,13],[2,16,2,18],[3,0,3,15],[5,0,5,5],[5,6,5,18],[6,0,6,5],[6,6,6,18],[8,0,10,0],[8,17,8,18],[8,20,8,28],[9,1,9,16],[9,17,10,18],[9,20,10,22],[10,1,10,16],[11,0,17,0],[11,1,11,7],[11,8,11,9],[11,10,13,12],[11,13,13,15],[11,16,13,18],[12,1,13,7],[12,8,13,9],[14,1,15,7],[14,8,15,9],[14,10,15,12],[14,13,15,15],[14,16,15,18],[16,1,17,7],[16,8,17,9],[16,10,17,12],[16,13,17,15],[16,16,17,18],[18,0,19,4],[18,5,18,6],[18,7,18,9],[18,10,19,12],[18,13,19,15],[18,16,19,18],[19,5,19,6],[19,7,19,9],[25,0,28,18],[25,19,28,19],[25,20,28,28],[30,0,32,3]]}
["Landeshauptstadt Dresden - Jugendamt",{"$nulls":6},{"$f":"'Ausgaben_ Finanzierung_ges'!G1","v":"Verwendungsnachweis 2024"},{"$nulls":7},"AZ:",{"$f":"'Ausgaben_ Finanzierung_ges'!N1","v":"117.00.03.SP24"}]
[]
["Bildungsmaßnahmen",{"$nulls":11},{"$f":"'Ausgaben_ Finanzierung_ges'!N3","v":2024},{"$nulls":3},"BM II - Blatt 1"]
["Kurzseminare mit mind. 3 Seminarstunden am Tag\n(Nachweis mit BE-Kennzeichnung im Ablaufplan)"]
[]
["Name der durchführenden Kirchgemeinde:",{"$nulls":5},{"$f":"IF('Ausgaben_ Finanzierung_ges'!F6>0,'Ausgaben_ Finanzierung_ges'!F6,\"\")","v":"Gruppenarbeit 01.01. - 31.12.2024"}]
["Veranstaltung (Name und Datum):",{"$nulls":5},{"$f":"IF('Ausgaben_ Finanzierung_ges'!F7>0,'Ausgaben_ Finanzierung_ges'!F7,\" \")","v":" "}]
[]
[1]
[null,"Kurzbeschreibung (Inhalt, Zielgruppe, Datum)",{"$nulls":15},"Anzahl gleicher Seminare"]
[null,"--> Detailierte Angaben zur Veranstaltung können aus der QM Auswertung entnommen werden."]
["Referenten","Name, Vorname",{"$nulls":6},"Stunden",null,"Ausgaben ",null,null,"in EUR",null,null,"max. möglicher Zuschuss"]
[]
[]
[{"$nulls":10},"Honorarkosten",{"$nulls":5},{"$f":"IF(((I13+I15+I17)*25)>N15,N15,((I13+I15+I17)*25))","v":0}]
[]
[{"$nulls":10},"weitere Ausgaben",{"$nulls":5},{"$f":"R9*50","v":0}]
[]
["eingenommene Teilnahmebeiträge",{"$nulls":4},"EUR pro Person:",null,"EUR gesamt:",null,null,"Summe",null,null,{"$f":"SUM(N15:P18)","v":0},null,null,{"$f":"IF(N19-H20<(IF((SUM(Q15:S18))>N19,N19,(SUM(Q15:S18)))),N19-H20,(IF((SUM(Q15:S18))>N19,N19,(SUM(Q15:S18)))))","v":0}]
[]
[]
[]
[]
[]
["evtl. Bemerkungen"]
[{"$nulls":20},"Sie möchten Absätze im Eingabefeld einfügen? \n-> Alt+Enter"]
{"$rows_empty":7}
["Datum ",{"$nulls":5},"Stempel",{"$nulls":6},"Unterschrift"]

{"sheet":"EPM","index":19,"n_rows":31,"n_cols":19,"rows_kept":31,"hidden":true,"merged":[[0,0,0,6],[0,7,0,10],[0,13,0,16],[2,0,2,9],[2,14,2,16],[4,0,4,6],[4,7,4,16],[5,0,5,6],[5,7,5,16],[8,0,9,0],[8,1,9,3],[8,6,9,7],[8,11,8,13],[8,14,8,16],[8,18,11,24],[9,11,9,13],[9,14,9,16],[10,0,11,5],[10,6,10,7],[10,8,10,9],[10,10,11,10],[10,11,11,13],[10,14,11,16],[11,6,11,7],[11,8,11,9],[12,0,12,9],[12,10,13,10],[12,11,13,13],[12,14,13,16],[12,18,13,24],[13,0,15,9],[14,10,16,10],[14,11,16,13],[14,14,16,16],[14,18,16,24],[16,0,16,9],[22,0,25,16],[22,18,25,24],[27,0,29,3]]}
["Landeshauptstadt Dresden - Jugendamt",{"$nulls":6},{"$f":"'Ausgaben_ Finanzierung_ges'!G1","v":"Verwendungsnachweis 2024"},{"$nulls":4},"AZ:",{"$f":"'Ausgaben_ Finanzierung_ges'!N1:P1","v":"117.00.03.SP24"}]
[]
["Erlebnispädagogische Maßnahmen",{"$nulls":9},{"$f":"'Ausgaben_ Finanzierung_ges'!N3","v":2024},{"$nulls":3},"EPM - Blatt 1"]
[]
["Name der durchführenden Kirchgemeinde:",{"$nulls":6},{"$f":"IF('Ausgaben_ Finanzierung_ges'!F5>0,'Ausgaben_ Finanzierung_ges'!F5,\"\")","v":""}]
["Veranstaltung (Name und Datum):",{"$nulls":6},{"$f":"IF('Ausgaben_ Finanzierung_ges'!F6>0,'Ausgaben_ Finanzierung_ges'!F6,\" \")","v":"Gruppenarbeit 01.01. - 31.12.2024"}]
[]
[]
["1.","Tage ohne                             Übernachtung:",null,null,"Tage","TN*","Tage mit                                        Übernachtung:",null,"Anzahl der Ü","TN*","Ausgaben ","in EUR",null,null,"max. möglicher Zuschuss",{"$nulls":3},"Ein Maßnahmetag + 1 Nacht wird als eine Übernachtung gezählt. Es werden bis zu 10 EUR/TN gewährt. Beginnt jedoch z. B. eine Maßnahme bereits früh und endet an einem anderen Tag abends, dann kann 1 Tag + 1 Übernachtung je TN geltend gemacht werden (= 15 EUR). "]
[{"$nulls":10},"Fahrt-, Reise-,                     Transportkosten",{"$nulls":3},{"$f":"L10*35/100","v":0}]
["eingenommene Teilnahmebeiträge",{"$nulls":5},"EUR pro Person",null,"EUR gesamt",null,"Betreuerkosten",{"$nulls":3},{"$f":"IF((((E10*F10*5)+(I10*J10*10))*20/100)>L11,L11,(((E10*F10*5)+(I10*J10*10))*20/100))","v":0}]
[]
["Kurzbeschreibung (Inhalt, Zielgruppe, Datum von-bis):",{"$nulls":9},"weitere Ausgaben (z. B. f. Unterkunft, Programmkosten)",{"$nulls":3},{"$f":"(E10*F10*5)+(I10*J10*10)","v":0},{"$nulls":3},{"$f":"IF(E10+I10>4,\"Die Maßnahme ist nicht zuwendungsfähig, da sie die Höchstdauer von 4 Tagen überschreitet.\",\"\")","v":""}]
[{"$f":"IF('Ausgaben_ Finanzierung_ges'!F5>0,'Ausgaben_ Finanzierung_ges'!F5,\" \")","v":" "}]
[{"$nulls":10},"Summe",{"$f":"SUM(L10:N13)","v":0},null,null,{"$f":"IF(E10+I10>4,0,(IF(J10+F10<5,0,(IF(L15-I12<(IF(L15<(SUM(O10:Q13)),L15,(SUM(O10:Q13)))),L15-I12, (IF(L15<(SUM(O10:Q13)),L15,(SUM(O10:Q13)))))))))","v":0},{"$nulls":3},{"$f":"IF(F10+J10<5,\"Die Maßnahme ist nicht zuwendungsfähig, da die Mindestteilnehmerzahl von 5 jungen Menschen nicht erbracht wird.\",\"\")","v":"Die Maßnahme ist nicht zuwendungsfähig, da die Mindestteilnehmerzahl von 5 jungen Menschen nicht erbracht wird."}]
[]
["--> Detailierte Angaben zur Veranstaltung können aus der QM Auswertung entnommen werden."]
[]
[]
[]
[]
["evtl. Bemerkungen"]
[{"$nulls":18},"Sie möchten Absätze im Eingabefeld einfügen? \n-> Alt+Enter"]
{"$rows_empty":7}
["Datum ",{"$nulls":5},"Stempel",{"$nulls":6},"Unterschrift"]

{"sheet":"Fest - Projekt","index":20,"n_rows":36,"n_cols":24,"rows_kept":36,"hidden":true,"merged":[[0,0,0,7],[0,8,0,14],[0,17,0,20],[2,0,2,13],[2,18,2,20],[4,0,4,6],[4,7,4,20],[5,0,5,6],[5,7,5,20],[7,0,8,0],[7,1,7,13],[7,15,7,17],[7,18,7,20],[7,23,16,23],[8,2,8,3],[8,5,8,6],[8,8,8,9],[8,11,8,12],[8,15,8,17],[8,18,8,20],[9,0,13,0],[9,6,9,7],[9,12,9,13],[9,14,10,14],[9,15,10,17],[9,18,10,20],[10,6,11,7],[10,8,11,11],[10,12,11,13],[11,14,12,14],[11,15,12,17],[11,18,12,20],[12,6,13,7],[12,8,13,11],[12,12,13,13],[13,14,14,14],[13,15,14,17],[13,18,14,20],[14,0,16,7],[14,8,14,10],[14,11,14,13],[15,8,16,10],[15,11,16,13],[15,14,16,14],[15,15,16,17],[15,18,16,20],[19,0,19,20],[20,0,20,20],[21,0,21,20],[27,0,30,20],[27,21,30,22],[27,23,30,23],[32,0,34,5]]}
["Landeshauptstadt Dresden - Jugendamt",{"$nulls":7},{"$f":"'Ausgaben_ Finanzierung_ges'!G1","v":"Verwendungsnachweis 2024"},{"$nulls":7},"AZ:",{"$f":"'Ausgaben_ Finanzierung_ges'!N1","v":"117.00.03.SP24"}]
[]
["Fest / Projekt",{"$nulls":13},{"$f":"'Ausgaben_ Finanzierung_ges'!N3","v":2024},{"$nulls":3},"Fest - Blatt 1"]
[]
["Name der durchführenden Kirchgemeinde:",{"$nulls":6},{"$f":"IF('Ausgaben_ Finanzierung_ges'!F5>0,'Ausgaben_ Finanzierung_ges'!F5,\"\")","v":""}]
["Veranstaltung (Name und Datum):",{"$nulls":6},{"$f":"IF('Ausgaben_ Finanzierung_ges'!F6>0,'Ausgaben_ Finanzierung_ges'!F6,\" \")","v":"Gruppenarbeit 01.01. - 31.12.2024"}]
[]
["1.","Anzahl der Teilnehmer",{"$nulls":12},"Ausgaben ","in EUR",null,null,"max. möglicher Zuschuss"]
[null,null,"bis 100",null,null,"101 - 300",null,null,"301 - 500",null,null,"ab 501",null,null,"Honorarkosten",{"$nulls":3},{"$f":"IF(((H11+H13+N11+N13)*25)>P9,P9,((H11+H13+N11+N13)*25))","v":0}]
["Referenten","Name, Vorname",{"$nulls":4},"Stunden",null,"Name, Vorname",{"$nulls":3},"Stunden",null,"Fahrt-, Reise-,                     Transportkosten",{"$nulls":3},{"$f":"IF(P10=0,0,P10)","v":0}]
[]
[{"$nulls":14},"Lebensmittel, Verpflegung",{"$nulls":3},{"$f":"IF(P12=0,0,P12)","v":0}]
[]
[{"$nulls":14},"weitere Ausgaben (z. B. f. Miete, Programmkosten)",{"$nulls":3},{"$f":"IF(E9>0,200,IF(H9>0,500,IF(K9>0,750,IF(N9>0,1250,\"\"))))","v":""}]
["eingenommene Teilnahmebeiträge",{"$nulls":7},"EUR pro Person",null,null,"EUR gesamt"]
[{"$nulls":14},"Summe",{"$f":"SUM(P9:R14)","v":0},null,null,{"$f":"IF(P16-L16<          (IF((SUM(S9:U15))>P16,P16,(SUM(S9:U15)))), P16-L16,  (IF((SUM(S9:U15))>P16,P16,(SUM(S9:U15)))))","v":0}]
[]
[]
[]
["Kurzbeschreibung (Inhalt, Zielgruppe, Datum von-bis)"]
[{"$nulls":23},"Sie möchten Absätze im Eingabefeld einfügen? \n-> Alt+Enter"]
["--> Detailierte Angaben zur Veranstaltung können aus der QM Auswertung entnommen werden."]
[]
[]
[]
[]
["evtl. Bemerkungen"]
[{"$nulls":23},"Sie möchten Absätze im Eingabefeld einfügen? \n-> Alt+Enter"]
{"$rows_empty":7}
["Datum ",{"$nulls":7},"Stempel",{"$nulls":8},"Unterschrift"]